fUST/lending_fUST_20250302
["ID","MTS","AMOUNT","RATE_DAILY","PERIOD"]
[354962817,1740846671085,-1737.44,0.00028219,2]
[354962818,1740846671096,-500.0,0.00028219,2]
[354962819,1740846671105,-905.67,0.00028219,2]
[354962820,1740846671116,-500.0,0.00028219,2]
[354962821,1740846671127,-500.0,0.00028219,2]
[354962822,1740846671136,-721.23,0.00028219,2]
[354962823,1740846671146,-3500.42,0.00028219,2]
[354962824,1740846671157,-508.93094798,0.00028219,2]
[354962825,1740846671167,-500.0,0.00028219,2]
[354962826,1740846671177,-570.56240796,0.00028219,2]
[354962827,1740846671188,-692.49,0.00028219,2]
[354962828,1740846671198,-500.0,0.00028219,2]
[354962829,1740846671208,-500.0,0.00028219,2]
[354962830,1740846671218,-500.0,0.00028219,2]
[354962831,1740846671228,-1553.76764963,0.0002822,4]
[354962832,1740846671238,-1553.76764963,0.0002822,4]
[354962833,1740846671247,-1553.76764963,0.0002822,4]
[354962834,1740846671256,-1553.76764963,0.0002822,4]
[354962835,1740846671268,-1553.76764963,0.0002822,4]
[354962836,1740846671283,-1553.76764963,0.0002822,4]
[354962837,1740846671292,-1553.76764963,0.0002822,4]
[354962838,1740846671301,-1553.76764963,0.0002822,4]
[354962839,1740846671311,-1553.76764963,0.0002822,4]
[354962840,1740846671322,-1553.76764963,0.0002822,4]
[354962841,1740846671331,-1553.76764963,0.0002822,4]
[354962842,1740846671341,-1553.76764963,0.0002822,4]
[354962843,1740846671351,-1553.76764963,0.0002822,4]
[354962844,1740846671360,-1553.76764963,0.0002822,4]
[354962845,1740846671370,-1553.76764963,0.0002822,4]
[354962846,1740846671379,-1553.76764963,0.0002822,4]
[354962847,1740846671388,-1553.76764963,0.0002822,4]
[354962848,1740846671398,-1553.76764963,0.0002822,4]
[354962849,1740846671407,-1553.76764963,0.0002822,4]
[354962850,1740846671416,-1553.76,0.0002822,4]
[354962851,1740846671425,-3625.45784915,0.0002822,4]
[354962852,1740846671436,-3625.45784915,0.0002822,4]
[354962853,1740846671445,-3625.45784915,0.0002822,4]
[354962854,1740846671454,-3625.45784915,0.0002822,4]
[354962855,1740846671464,-3625.45784915,0.0002822,4]
[354962856,1740846671473,-3625.45784915,0.0002822,4]
[354962857,1740846671483,-3625.45784915,0.0002822,4]
[354962858,1740846671494,-3625.45784915,0.0002822,4]
[354962859,1740846671503,-3625.45784915,0.0002822,4]
[354962860,1740846671512,-3625.45784915,0.0002822,4]
[354962861,1740846671521,-3625.45784915,0.0002822,4]
[354962862,1740846671530,-3625.45784915,0.0002822,4]
[354962863,1740846671540,-3625.45784915,0.0002822,4]
[354962864,1740846671549,-3625.45784915,0.0002822,4]
[354962865,1740846671559,-3625.45784915,0.0002822,4]
[354962866,1740846671568,-3625.45784915,0.0002822,4]
[354962867,1740846671578,-3625.45784915,0.0002822,4]
[354962868,1740846671587,-3625.45784915,0.0002822,4]
[354962869,1740846671596,-3625.45784915,0.0002822,4]
[354962870,1740846671606,-3625.45,0.0002822,4]
[354962871,1740846671615,-868.06063396,0.0002822,4]
[354962872,1740846671625,-868.06063396,0.0002822,4]
[354962873,1740846671634,-868.06063396,0.0002822,4]
[354962874,1740846671644,-868.06063396,0.0002822,4]
[354962875,1740846671653,-868.06063396,0.0002822,4]
[354962876,1740846671669,-868.06063396,0.0002822,4]
[354962877,1740846671678,-868.06063396,0.0002822,4]
[354962878,1740846671687,-868.06063396,0.0002822,4]
[354962879,1740846671697,-868.06063396,0.0002822,4]
[354962880,1740846671706,-868.06063396,0.0002822,4]
[354962881,1740846671716,-868.06063396,0.0002822,4]
[354962882,1740846671725,-868.06063396,0.0002822,4]
[354962883,1740846671734,-868.06063396,0.0002822,4]
[354962884,1740846671744,-868.06063396,0.0002822,4]
[354962885,1740846671753,-868.06063396,0.0002822,4]
[354962886,1740846671762,-868.06063396,0.0002822,4]
[354962887,1740846671771,-868.06063396,0.0002822,4]
[354962888,1740846671781,-868.06063396,0.0002822,4]
[354962889,1740846671790,-868.06063396,0.0002822,4]
[354962890,1740846671800,-868.06,0.0002822,4]
[354962891,1740846671809,-2025.47481258,0.0002822,4]
[354962892,1740846671822,-2025.47481258,0.0002822,4]
[354962893,1740846671831,-2025.47481258,0.0002822,4]
[354962894,1740846671841,-2025.47481258,0.0002822,4]
[354962895,1740846671851,-2025.47481258,0.0002822,4]
[354962896,1740846671860,-2025.47481258,0.0002822,4]
[354962897,1740846671869,-2025.47481258,0.0002822,4]
[354962898,1740846671880,-2025.47481258,0.0002822,4]
[354962899,1740846671890,-2025.47481258,0.0002822,4]
[354962900,1740846671900,-2025.47481258,0.0002822,4]
[354962901,1740846671909,-2025.47481258,0.0002822,4]
[354962902,1740846671918,-2025.47481258,0.0002822,4]
[354962903,1740846671928,-2025.47481258,0.0002822,4]
[354962904,1740846671937,-2025.47481258,0.0002822,4]
[354962905,1740846671947,-2025.47481258,0.0002822,4]
[354962906,1740846671957,-2025.47481258,0.0002822,4]
[354962907,1740846671967,-2025.47481258,0.0002822,4]
[354962908,1740846671976,-2025.47481258,0.0002822,4]
[354962909,1740846671986,-2025.47481258,0.0002822,4]
[354962910,1740846671996,-2025.47,0.0002822,4]
[354962911,1740846672005,-304.04910962,0.0002822,4]
[354962912,1740846672014,-304.04910962,0.0002822,4]
[354962913,1740846672024,-304.04910962,0.0002822,4]
[354962914,1740846672034,-304.04910962,0.0002822,4]
[354962915,1740846672044,-304.04910962,0.0002822,4]
[354962916,1740846672054,-304.04910962,0.0002822,4]
[354962917,1740846672064,-304.04910962,0.0002822,4]
[354962918,1740846672074,-304.04910962,0.0002822,4]
[354962919,1740846672083,-304.04910962,0.0002822,4]
[354962920,1740846672093,-304.04910962,0.0002822,4]
[354962921,1740846672103,-304.04910962,0.0002822,4]
[354962922,1740846672113,-304.04910962,0.0002822,4]
[354962923,1740846672123,-304.04910962,0.0002822,4]
[354962924,1740846672133,-304.04910962,0.0002822,4]
[354962925,1740846672143,-304.04910962,0.0002822,4]
[354962926,1740846672152,-304.04910962,0.0002822,4]
[354962927,1740846672163,-304.04910962,0.0002822,4]
[354962928,1740846672172,-304.04910962,0.0002822,4]
[354962929,1740846672182,-304.04910962,0.0002822,4]
[354962930,1740846672192,-304.04,0.0002822,4]
[354962931,1740846672203,-709.44792246,0.0002822,4]
[354962932,1740846672212,-709.44792246,0.0002822,4]
[354962933,1740846672221,-709.44792246,0.0002822,4]
[354962934,1740846672231,-709.44792246,0.0002822,4]
[354962935,1740846672241,-709.44792246,0.0002822,4]
[354962936,1740846672251,-709.44792246,0.0002822,4]
[354962937,1740846672261,-709.44792246,0.0002822,4]
[354962938,1740846672274,-709.44792246,0.0002822,4]
[354962939,1740846672283,-709.44792246,0.0002822,4]
[354962940,1740846672293,-709.44792246,0.0002822,4]
[354962941,1740846672302,-709.44792246,0.0002822,4]
[354962942,1740846672315,-709.44792246,0.0002822,4]
[354962943,1740846672324,-709.44792246,0.0002822,4]
[354962944,1740846672334,-709.44792246,0.0002822,4]
[354962945,1740846672344,-709.44792246,0.0002822,4]
[354962946,1740846672354,-709.44792246,0.0002822,4]
[354962947,1740846672366,-709.44792246,0.0002822,4]
[354962948,1740846672375,-709.44792246,0.0002822,4]
[354962949,1740846672386,-709.44792246,0.0002822,4]
[354962950,1740846672396,-709.44,0.0002822,4]
[354962951,1740846672406,-587.0,0.00028223,2]
[354962952,1740846672416,-25000.0,0.00028493,4]
[354962953,1740846672426,-500.0,0.00028493,2]
[354962954,1740846672435,-500.0,0.00028493,2]
[354962955,1740846672446,-309.19359549,0.00028493,2]
[354962956,1740846672455,-500.0,0.00028493,2]
[354962957,1740846672465,-500.0,0.00028493,2]
[354962958,1740846672475,-500.0,0.00028493,2]
[354962959,1740846672485,-500.0,0.00028493,2]
[354962960,1740846672494,-500.0,0.00028493,2]
[354962961,1740846672504,-1059.82,0.00028493,2]
[354962962,1740846672513,-275.79247018,0.00028493,2]
[354962963,1740846672522,-500.0,0.00028493,2]
[354962964,1740846672532,-500.0,0.00028493,2]
[354962965,1740846672543,-237.67060862,0.00028493,2]
[354962966,1740846672553,-500.0,0.00028493,2]
[354962967,1740846672563,-500.0,0.00028493,2]
[354962968,1740846672574,-500.0,0.00028493,2]
[354962969,1740846672584,-500.0,0.00028493,2]
[354962970,1740846672594,-500.0,0.00028493,2]
[354962971,1740846672603,-963.19,0.00028493,2]
[354962972,1740846672613,-555.68,0.00028493,2]
[354962973,1740846672623,-560.77561442,0.00028493,2]
[354962974,1740846672632,-806.79,0.00028493,2]
[354962975,1740846672642,-500.0,0.00028493,2]
[354962976,1740846672652,-500.0,0.00028493,2]
[354962977,1740846672661,-500.0,0.00028493,2]
[354962978,1740846672671,-500.0,0.00028493,2]
[354962979,1740846672681,-500.0,0.00028493,2]
[354962980,1740846672690,-500.0,0.00028493,2]
[354962981,1740846672700,-500.0,0.00028493,2]
[354962982,1740846672710,-200.0,0.00028493,2]
[354962983,1740846672719,-847.9,0.00028493,2]
[354962984,1740846672729,-500.0,0.00028493,2]
[354962985,1740846672739,-500.0,0.00028493,2]
[354962986,1740846672748,-500.0,0.00028493,2]
[354962987,1740846672758,-500.0,0.00028493,2]
[354962988,1740846672767,-625.52,0.00028493,2]
[354962989,1740846672777,-500.0,0.00028493,2]
[354962990,1740846672787,-500.0,0.00028493,2]
[354962991,1740846672797,-752.35,0.00028493,2]
[354962992,1740846672806,-500.0,0.00028493,2]
[354962993,1740846672816,-500.0,0.00028493,2]
[354962994,1740846672826,-500.0,0.00028493,2]
[354962995,1740846672835,-224.50637899,0.00028493,2]
[354962996,1740846672844,-500.0,0.00028493,2]
[354962997,1740846672854,-587.18,0.00028493,2]
[354962998,1740846672863,-500.0,0.00028493,2]
[354962999,1740846672873,-500.0,0.00028493,2]
[354963000,1740846672882,-500.0,0.00028493,2]
[354963001,1740846672892,-500.0,0.00028493,2]
[354963002,1740846672902,-716.58,0.00028493,2]
[354963003,1740846672911,-500.0,0.00028493,2]
[354963004,1740846672922,-592.03,0.00028493,2]
[354963005,1740846672931,-500.0,0.00028493,2]
[354963006,1740846672940,-500.0,0.00028493,2]
[354963007,1740846672950,-500.0,0.00028493,2]
[354963008,1740846672960,-500.0,0.00028493,2]
[354963009,1740846672970,-556.52,0.00028493,2]
[354963010,1740846672979,-500.0,0.00028493,2]
[354963011,1740846672990,-1034.1,0.00028493,2]
[354963012,1740846673000,-590.98,0.00028493,2]
[354963013,1740846673010,-500.0,0.00028493,2]
[354963014,1740846673020,-500.0,0.00028493,2]
[354963015,1740846673030,-500.0,0.00028493,2]
[354963016,1740846673040,-712.89,0.00028493,2]
[354963017,1740846673050,-500.0,0.00028493,2]
[354963018,1740846673060,-573.66,0.00028493,2]
[354963019,1740846673071,-500.0,0.00028493,2]
[354963020,1740846673080,-1089.04,0.00028493,2]
[354963021,1740846673090,-500.0,0.00028493,2]
[354963022,1740846673100,-500.0,0.00028493,2]
[354963023,1740846673109,-1123.8,0.00028493,2]
[354963024,1740846673119,-500.0,0.00028493,2]
[354963025,1740846673129,-221.42438152,0.00028493,2]
[354963026,1740846673139,-542.65117371,0.00028493,2]
[354963027,1740846673148,-619.73,0.00028493,2]
[354963028,1740846673158,-614.57,0.00028493,2]
[354963029,1740846673168,-500.0,0.00028493,2]
[354963030,1740846673178,-833.6,0.00028493,2]
[354963031,1740846673187,-500.0,0.00028493,2]
[354963032,1740846673197,-500.0,0.00028493,2]
[354963033,1740846673207,-500.0,0.00028493,2]
[354963034,1740846673217,-500.0,0.00028493,2]
[354963035,1740846673227,-500.0,0.00028493,2]
[354963036,1740846673237,-1025.72,0.00028493,2]
[354963037,1740846673247,-500.0,0.00028493,2]
[354963038,1740846673258,-500.0,0.00028493,2]
[354963039,1740846673276,-500.0,0.00028493,2]
[354963040,1740846673286,-1233.37,0.00028493,2]
[354963041,1740846673296,-500.0,0.00028493,2]
[354963042,1740846673306,-500.0,0.00028493,2]
[354963043,1740846673315,-151.0,0.00028493,7]
[354963044,1740846673325,-500.0,0.00028493,2]
[354963045,1740846673335,-706.29,0.00028493,2]
[354963046,1740846673345,-500.0,0.00028493,2]
[354963047,1740846673356,-151.0,0.00028493,7]
[354963048,1740846673366,-500.0,0.00028493,2]
[354963049,1740846673375,-151.0,0.00028493,7]
[354963050,1740846673385,-500.0,0.00028493,2]
[354963051,1740846673395,-586.22,0.00028493,2]
[354963052,1740846673404,-502.58,0.00028493,2]
[354963053,1740846673413,-886.17,0.00028493,2]
[354963054,1740846673423,-697.28,0.00028493,2]
[354963055,1740846673433,-500.0,0.00028493,2]
[354963056,1740846673443,-500.0,0.00028493,2]
[354963057,1740846673453,-500.0,0.00028493,2]
[354963058,1740846673463,-1318.09,0.00028493,2]
[354963059,1740846673473,-1492.38,0.00028493,2]
[354963060,1740846673483,-500.0,0.00028493,2]
[354963061,1740846673493,-500.0,0.00028493,2]
[354963062,1740846673502,-978.04,0.00028493,2]
[354963063,1740846673511,-500.0,0.00028493,2]
[354963064,1740846673521,-151.0,0.00028493,7]
[354963065,1740846673531,-500.0,0.00028493,2]
[354963066,1740846673540,-151.0,0.00028493,7]
[354963067,1740846673549,-500.0,0.00028493,2]
[354963068,1740846673558,-1773.76,0.00028493,2]
[354963069,1740846673569,-741.16,0.00028493,2]
[354963070,1740846673578,-500.0,0.00028493,2]
[354963071,1740846673588,-500.0,0.00028493,2]
[354963072,1740846673598,-500.0,0.00028493,2]
[354963073,1740846673609,-500.0,0.00028493,2]
[354963074,1740846673619,-500.0,0.00028493,2]
[354963075,1740846673629,-1842.14,0.00028493,2]
[354963076,1740846673639,-913.9,0.00028493,2]
[354963077,1740846673649,-500.0,0.00028493,2]
[354963078,1740846673660,-500.0,0.00028493,2]
[354963079,1740846673669,-500.0,0.00028493,2]
[354963080,1740846673680,-500.0,0.00028493,2]
[354963081,1740846673690,-619.14,0.00028493,2]
[354963082,1740846673700,-500.0,0.00028493,2]
[354963083,1740846673710,-500.0,0.00028493,2]
[354963084,1740846673720,-500.0,0.00028493,2]
[354963085,1740846673730,-500.0,0.00028493,2]
[354963086,1740846673740,-500.0,0.00028493,2]
[354963087,1740846673751,-640.32252769,0.00028493,2]
[354963088,1740846673761,-500.0,0.00028493,2]
[354963089,1740846673772,-500.0,0.00028493,2]
[354963090,1740846673782,-560.42,0.00028493,2]
[354963091,1740846673792,-500.0,0.00028493,2]
[354963092,1740846673803,-500.0,0.00028493,2]
[354963093,1740846673813,-1240.95,0.00028493,2]
[354963094,1740846673823,-500.0,0.00028493,2]
[354963095,1740846673834,-151.0,0.00028493,7]
[354963096,1740846673845,-545.06,0.00028493,2]
[354963097,1740846673856,-151.0,0.00028493,7]
[354963098,1740846673866,-500.0,0.00028493,2]
[354963099,1740846673877,-738.3,0.00028493,2]
[354963100,1740846673888,-1708.18,0.00028493,2]
[354963101,1740846673898,-540.28,0.00028493,2]
[354963102,1740846673908,-151.0,0.00028493,7]
[354963103,1740846673919,-500.0,0.00028493,2]
[354963104,1740846673929,-500.0,0.00028493,2]
[354963105,1740846673938,-1546.57,0.00028493,2]
[354963106,1740846673949,-777.53,0.00028493,2]
[354963107,1740846673959,-714.07,0.00028493,2]
[354963108,1740846673969,-986.59,0.00028493,2]
[354963109,1740846673979,-500.0,0.00028493,2]
[354963110,1740846673989,-500.0,0.00028493,2]
[354963111,1740846673999,-151.0,0.00028493,7]
[354963112,1740846674009,-500.0,0.00028493,2]
[354963113,1740846674020,-500.0,0.00028493,2]
[354963114,1740846674030,-730.1,0.00028493,2]
[354963115,1740846674041,-500.0,0.00028493,2]
[354963116,1740846674051,-500.0,0.00028493,2]
[354963117,1740846674061,-500.0,0.00028493,2]
[354963118,1740846674073,-151.0,0.00028493,7]
[354963119,1740846674083,-500.0,0.00028493,2]
[354963120,1740846674094,-500.0,0.00028493,2]
[354963121,1740846674104,-580.99,0.00028493,2]
[354963122,1740846674114,-500.0,0.00028493,2]
[354963123,1740846674125,-447.79304725,0.00028493,2]
[354963124,1740846674136,-1239.39,0.00028493,2]
[354963125,1740846674146,-500.0,0.00028493,2]
[354963126,1740846674156,-484.52555655,0.00028493,2]
[354963127,1740846674167,-500.0,0.00028493,2]
[354963128,1740846674177,-623.09,0.00028493,2]
[354963129,1740846674188,-500.0,0.00028493,2]
[354963130,1740846674199,-500.0,0.00028493,2]
[354963131,1740846674210,-500.0,0.00028493,2]
[354963132,1740846674220,-151.0,0.00028493,7]
[354963133,1740846674231,-500.0,0.00028493,2]
[354963134,1740846674243,-500.0,0.00028493,2]
[354963135,1740846674254,-500.0,0.00028493,2]
[354963136,1740846674268,-470.79069786,0.00028493,2]
[354963137,1740846674280,-500.0,0.00028493,2]
[354963138,1740846674292,-151.0,0.00028493,7]
[354963139,1740846674303,-1196.92,0.00028493,2]
[354963140,1740846674315,-151.0,0.00028493,7]
[354963141,1740846674327,-500.0,0.00028493,2]
[354963142,1740846674338,-592.2,0.00028493,2]
[354963143,1740846674349,-151.0,0.00028493,7]
[354963144,1740846674359,-500.0,0.00028493,2]
[354963145,1740846674368,-1830.43,0.00028493,2]
[354963146,1740846674378,-151.0,0.00028493,7]
[354963147,1740846674388,-1318.59,0.00028493,2]
[354963148,1740846674398,-500.0,0.00028493,2]
[354963149,1740846674409,-500.0,0.00028493,2]
[354963150,1740846674420,-500.0,0.00028493,2]
[354963151,1740846674431,-842.23,0.00028493,2]
[354963152,1740846674442,-185.283063,0.00028493,7]
[354963153,1740846674453,-500.0,0.00028493,2]
[354963154,1740846674463,-500.0,0.00028493,2]
[354963155,1740846674474,-1807.0,0.00028493,2]
[354963156,1740846674485,-500.0,0.00028493,2]
[354963157,1740846674496,-185.283063,0.00028493,7]
[354963158,1740846674507,-503.60315208,0.00028493,2]
[354963159,1740846674517,-500.0,0.00028493,2]
[354963160,1740846674528,-500.0,0.00028493,2]
[354963161,1740846674539,-1942.63,0.00028493,2]
[354963162,1740846674549,-1876.69,0.00028493,2]
[354963163,1740846674559,-500.0,0.00028493,2]
[354963164,1740846674570,-608.56695377,0.00028493,2]
[354963165,1740846674580,-1414.82,0.00028493,2]
[354963166,1740846674591,-323.39534,0.00028493,7]
[354963167,1740846674601,-500.0,0.00028493,2]
[354963168,1740846674612,-500.0,0.00028493,2]
[354963169,1740846674623,-500.0,0.00028493,2]
[354963170,1740846674633,-5651.0,0.00028493,2]
[354963171,1740846674643,-500.0,0.00028493,2]
[354963172,1740846674653,-424.667045,0.00028493,7]
[354963173,1740846674664,-256.091818,0.00028493,7]
[354963174,1740846674673,-1729.16,0.00028493,2]
[354963175,1740846674684,-424.667045,0.00028493,7]
[354963176,1740846674694,-256.091818,0.00028493,7]
[354963177,1740846674705,-533.06,0.00028493,2]
[354963178,1740846674715,-151.0,0.00028493,7]
[354963179,1740846674725,-500.0,0.00028493,2]
[354963180,1740846674737,-500.0,0.00028493,2]
[354963181,1740846674747,-500.0,0.00028493,2]
[354963182,1740846674758,-500.0,0.00028493,2]
[354963183,1740846674768,-500.0,0.00028493,2]
[354963184,1740846674779,-500.0,0.00028493,2]
[354963185,1740846674790,-659.72,0.00028493,2]
[354963186,1740846674804,-391.457087,0.00028493,7]
[354963187,1740846674814,-500.0,0.00028493,2]
[354963188,1740846674826,-1617.61,0.00028493,2]
[354963189,1740846674837,-391.457087,0.00028493,7]
[354963190,1740846674847,-500.0,0.00028493,2]
[354963191,1740846674857,-500.0,0.00028493,2]
[354963192,1740846674867,-1443.77,0.00028493,2]
[354963193,1740846674877,-500.0,0.00028493,2]
[354963194,1740846674889,-521.11,0.00028493,2]
[354963195,1740846674899,-204.382011,0.00028493,2]
[354963196,1740846674910,-1859.02,0.00028493,2]
[354963197,1740846674920,-595.51,0.00028493,2]
[354963198,1740846674931,-204.382011,0.00028493,2]
[354963199,1740846674942,-151.0,0.00028493,7]
[354963200,1740846674953,-500.0,0.00028493,2]
[354963201,1740846674963,-151.0,0.00028493,7]
[354963202,1740846674973,-1234.4,0.00028493,2]
[354963203,1740846674984,-500.0,0.00028493,2]
[354963204,1740846674995,-775.4,0.00028493,2]
[354963205,1740846675006,-349.08526,0.00028493,7]
[354963206,1740846675016,-1146.15,0.00028493,2]
[354963207,1740846675028,-349.08526,0.00028493,7]
[354963208,1740846675038,-151.0,0.00028493,7]
[354963209,1740846675049,-819.3,0.00028493,2]
[354963210,1740846675059,-629.43,0.00028493,2]
[354963211,1740846675071,-593.01578155,0.00028493,2]
[354963212,1740846675082,-134126.87167475,0.00028493,2]
[354963213,1740846677165,-45.14956993,0.00027397,2]
[354963214,1740846678401,-454.85043007,0.00027397,2]
[354963215,1740846678411,-1122.27,0.00027397,2]
[354963216,1740846678420,-500.0,0.00027397,2]
[354963217,1740846678430,-389.09076993,0.00027397,2]
[354963220,1740847548149,-423.3416123,0.00025414,2]
[354963221,1740847548172,-378.0633877,0.00025622,2]
[354963222,1740847559090,-1.9366123,0.00025622,2]
[354963223,1740847559113,-250.0,0.0002564,2]
[354963224,1740847559134,-179.05769499,0.0002569,2]
[354963225,1740847583338,10000.0,0.00025,7]
[354963226,1740847604092,-589.2564022,0.0002569,2]
[354963227,1740847626088,-300.0,0.00025523,2]
[354963228,1740847626113,-145.67375336,0.00025524,2]
[354963229,1740847627143,-1267.29541988,0.00025524,2]
[354963230,1740847643112,-5026.53521216,0.00025524,2]
[354963231,1740847644085,-18460.4956146,0.00025524,2]
[354963232,1740847644108,-1218.43200601,0.0002569,2]
[354963233,1740847644128,-2302.2123254,0.00025771,2]
[354963234,1740847644150,-2865.98427663,0.0002612,2]
[354963235,1740847644173,-1515.73913772,0.0002614,2]
[354963236,1740847644195,-10000.0,0.00026241,2]
[354963237,1740847644480,-5240.7629425,0.00026275,2]
[354963238,1740847644505,-642.70211012,0.000269,4]
[354963239,1740847644526,-308.93706505,0.00026995,2]
[354963240,1740847644550,-500.0,0.00026995,2]
[354963241,1740847644575,-318.11057806,0.00026995,2]
[354963242,1740847644598,-500.0,0.00026995,2]
[354963243,1740847644621,-500.0,0.00026995,2]
[354963244,1740847644643,-500.0,0.00026995,2]
[354963245,1740847644668,-500.0,0.00026995,2]
[354963246,1740847644691,-500.0,0.00026995,2]
[354963247,1740847644715,-500.0,0.00026995,2]
[354963248,1740847644738,-500.0,0.00026995,2]
[354963249,1740847644761,-500.0,0.00026995,2]
[354963250,1740847644784,-500.0,0.00026995,2]
[354963251,1740847644806,-500.0,0.00026995,2]
[354963252,1740847644829,-500.0,0.00026995,2]
[354963253,1740847644852,-500.0,0.00026995,2]
[354963254,1740847644877,-500.0,0.00026995,2]
[354963255,1740847644904,-500.0,0.00026995,2]
[354963256,1740847644928,-500.0,0.00026995,2]
[354963257,1740847644954,-500.0,0.00026995,2]
[354963258,1740847644979,-500.0,0.00026995,2]
[354963259,1740847645003,-500.0,0.00026995,2]
[354963260,1740847645027,-500.0,0.00026995,2]
[354963261,1740847645050,-457.18405353,0.00026995,2]
[354963262,1740847645073,-500.0,0.00026995,2]
[354963263,1740847645095,-500.0,0.00026995,2]
[354963264,1740847645118,-500.0,0.00026995,2]
[354963265,1740847645140,-500.0,0.00026995,2]
[354963266,1740847645163,-500.0,0.00026995,2]
[354963267,1740847645185,-500.0,0.00026995,2]
[354963268,1740847645209,-500.0,0.00026995,2]
[354963269,1740847645231,-500.0,0.00026995,2]
[354963270,1740847645254,-500.0,0.00026995,2]
[354963271,1740847645278,-500.0,0.00026995,2]
[354963272,1740847645301,-500.0,0.00026995,2]
[354963273,1740847645324,-500.0,0.00026995,2]
[354963274,1740847645346,-500.0,0.00026995,2]
[354963275,1740847645368,-500.0,0.00026995,2]
[354963276,1740847645391,-500.0,0.00026995,2]
[354963277,1740847645413,-500.0,0.00026995,2]
[354963278,1740847645435,-500.0,0.00026995,2]
[354963279,1740847645457,-500.0,0.00026995,2]
[354963280,1740847645479,-500.0,0.00026995,2]
[354963281,1740847645502,-500.0,0.00026995,2]
[354963282,1740847645525,-500.0,0.00026995,2]
[354963283,1740847645549,-500.0,0.00026995,2]
[354963284,1740847645575,-500.0,0.00026995,2]
[354963285,1740847645602,-500.0,0.00026995,2]
[354963286,1740847645629,-500.0,0.00026995,2]
[354963287,1740847645656,-500.0,0.00026995,2]
[354963288,1740847645683,-500.0,0.00026995,2]
[354963289,1740847645708,-500.0,0.00026995,2]
[354963290,1740847645732,-500.0,0.00026995,2]
[354963291,1740847645755,-500.0,0.00026995,2]
[354963292,1740847645777,-500.0,0.00026995,2]
[354963293,1740847645800,-450.0,0.00026995,2]
[354963294,1740847645823,-500.0,0.00026995,2]
[354963295,1740847645846,-500.0,0.00026995,2]
[354963296,1740847645868,-819.882,0.00026999,15]
[354963297,1740847645889,-174.916,0.00026999,15]
[354963298,1740847645913,-5241.78589089,0.00027,2]
[354963299,1740847649083,-212.9715088,0.00025429,2]
[354963300,1740847649104,-2346.30674241,0.00027,2]
[354963301,1740847696464,10000.0,0.00025,7]
[354963302,1740847751103,-300.0,0.00025589,2]
[354963303,1740847751126,-5462.28772021,0.0002559,2]
[354963304,1740847755095,-6042.08128693,0.0002559,2]
[354963305,1740847755118,-275.4529866,0.00025883,2]
[354963306,1740847755140,-435.21563807,0.00026,5]
[354963307,1740847768087,-239.42671792,0.00026,5]
[354963308,1740847779154,568.32662591,0.00025974,2]
[354963398,1740847838609,-1910.65618442,0.00024895,2]
[354963399,1740847838621,-398.05125909,0.00025974,2]
[354963400,1740847838634,-230.0,0.00026,120]
[354963401,1740847838646,-621.27870643,0.000269,4]
[354963402,1740847838657,-152.08,0.00026985,2]
[354963403,1740847838668,-152.08,0.00026985,2]
[354963404,1740847838679,-152.08,0.00026985,2]
[354963405,1740847838690,-152.08,0.00026985,2]
[354963406,1740847838701,-152.08,0.00026985,2]
[354963407,1740847838712,-152.08,0.0002699,2]